Cogmind - Beta 9.1 @@@ ROGUE MODE // 2019.11.03 @ 00:28:35 Player: MrPainting Result: Self-destructed Performance ------------- Evolutions (1) 500 Regions Visited (4) 800 Robots Destroyed (32) 160 Value Destroyed (870) 870 Prototype IDs (4) 80 Alien Tech Used (0) 0 Bonus (7) 7 TOTAL SCORE: 2417 Bonus ------- Follower Combat Kills 7 Cogmind --------- Core Integrity 344/400 Matter 292/300 Energy 265/265 System Corruption 4% Temperature Cool (154) Location -9/Mines Parts ------- Power (1) Reinforced Ion Engine Propulsion (4) Improved Hover Unit Improved Hover Unit Utility (2) Improved Targeting Computer Improved Targeting Computer Weapon (2) Advanced Beam Cannon Light Cannon Inventory (4) Improved Heat Sink Large Storage Unit Large Storage Unit Signal Interpreter Peak State ------------ Power Light Nuclear Core Propulsion Improved Hover Unit Improved Hover Unit Improved Hover Unit Improved Hover Unit Utility Improved Targeting Computer Improved Targeting Computer Weapon Advanced Beam Cannon Light Cannon Inventory Improved Heat Sink Signal Interpreter Light Cannon Light Cannon [Rating: 19] Favorites ----------- Power Light Nuclear Core Engine Heavy Ion Engine Power Core Light Nuclear Core Propulsion Improved Hover Unit Leg Aluminum Leg Hover Unit Improved Hover Unit Utility Improved Targeting Computer Device Sensor Array Processor Improved Targeting Computer Weapon Light Cannon Energy Cannon Advanced Beam Cannon Ballistic Gun Light Assault Rifle Ballistic Cannon Light Cannon Build | -11 -10 -10 -9 -9 ------- Run | Scr Mat Min Mat Min Slots Evolved 2 | . . . 2 . Power . | . . . . . Propulsion 2 | . . . 2 . Utility . | . . . . . Weapon . | . . . . . Parts Attached 34 | 4 17 . 12 1 Power 7 | . 3 . 3 1 Engine 5 | . 2 . 2 1 Core 2 | . 1 . 1 . Reactor . | . . . . . Propulsion 15 | 2 7 . 6 . Treads . | . . . . . Leg 4 | 2 2 . . . Wheel . | . . . . . Hover 11 | . 5 . 6 . Flight . | . . . . . Utility 4 | . 3 . 1 . Device 1 | . 1 . . . Storage . | . . . . . Processor 3 | . 2 . 1 . Hackware . | . . . . . Protection . | . . . . . Artifact . | . . . . . Weapon 8 | 2 4 . 2 . Energy Gun . | . . . . . Energy Cannon 1 | . . . 1 . Ballistic Gun 2 | 2 . . . . Ballistic Cannon 5 | . 4 . 1 . Launcher . | . . . . . Special Weapon . | . . . . . Impact Weapon . | . . . . . Slashing Weapon . | . . . . . Piercing Weapon . | . . . . . Special Melee Weapon . | . . . . . Unidentified Prototypes 2 | . . . 2 . Parts Lost 5 | . 1 . 1 3 Power 1 | . . . . 1 Propulsion 4 | . 1 . 1 2 Utility . | . . . . . Weapon . | . . . . . Highest Loss Streak 2 | . 1 . 1 2 Average Slot Usage (%) 93 | . 84 100 95 99 Engine 5 | . 6 . . 11 Core 5 | . 3 14 10 . Leg 1 | . 4 . . . Hover 33 | . 18 28 39 43 Device 4 | . 10 14 . . Processor 18 | . 13 14 21 22 Energy Cannon 5 | . . . 6 11 Ballistic Cannon 18 | . 26 28 15 11 Naked Turns . | . . . . . Heaviest Build 17 | 2 12 12 15 17 Greatest Support 32 | 20 20 12 32 32 Greatest Overweight (x) 1 | . 1 . . . Average Overweight (x) . | . . . . . Largest Inventory Capacity 4 | 4 4 4 4 4 Average Capacity 4 | 4 4 4 4 4 Most Carried 4 | 4 4 4 4 4 Average Carried 3 | 2 3 4 3 4 Final Capacity 4 | 4 4 4 4 4 Final Carried 4 | 4 4 4 4 4 Class Distribution -------------------- 74% | Mutant 25% | Scavenger-Mutant Dominant Class ---------------- Mutant | -10/Materials Scavenger-Mutant | -10/Mines Mutant | -9/Materials Mutant | -9/Mines Resources | -11 -10 -10 -9 -9 ----------- Run | Scr Mat Min Mat Min Matter Collected 914 | 218 221 . 393 82 Remotely . | . . . . . Salvage Created 997 | . 281 . 509 207 Parts 73 | . 24 . 37 12 Haulers Intercepted 2 | . . . 2 . Recyclers Shooed 2 | . 1 . . 1 Parts Field Recycled . | . . . . . Retrieved Matter . | . . . . . Parts Self-Destructed . | . . . . . Prevented . | . . . . . Kills | -11 -10 -10 -9 -9 ------- Run | Scr Mat Min Mat Min Combat Hostiles Destroyed 23 | . 8 . 9 6 Cannons 23 | . 8 . 9 6 Classes Destroyed 9 | . 4 . 5 . Worker 1 | . 1 . . . Hauler 2 | . . . 2 . Recycler 1 | . . . 1 . Watcher 5 | . 2 . 3 . Swarmer 5 | . 3 . 2 . Grunt 12 | . 5 . 3 4 Brawler 3 | . . . 1 2 Duelist 1 | . . . 1 . Sentry 2 | . . . 2 . Best Kill Streak 8 | . 8 . 6 6 Combat Bots Only 7 | . 7 . 5 6 Max Kills in Single Turn 1 | . 1 . 1 1 Gunslinging . | . . . . . Exploded . | . . . . . Melee . | . . . . . Uniques/NPCs Destroyed . | . . . . . Combat | -11 -10 -10 -9 -9 -------- Run | Scr Mat Min Mat Min Damage Taken 709 | . 250 . 191 268 Core 87 | . 31 . 13 43 Absorbed by Shields . | . . . . . Core Remaining (%) 93 | 100 . 87 . . Volleys Fired 70 | . 19 . 30 21 Largest 2 | . 2 . 2 2 Hottest 103 | . 70 . 103 103 Shots Fired 138 | . 38 . 60 40 Gun . | . . . . . Cannon 138 | . 38 . 60 40 Launcher . | . . . . . Special . | . . . . . Kinetic 99 | . 38 . 40 21 Thermal 39 | . . . 20 19 Explosive . | . . . . . Electromagnetic . | . . . . . Robot Hit Streak 17 | . 10 . 17 13 Robot Miss Streak 3 | . 3 . 3 2 Penetration Max . | . . . . . Secondary Targets . | . . . . . Shots Hit Robots 92 | . 23 . 40 29 Core Hits 39 | . 13 . 18 8 Critical Hits 2 | . . . 1 1 Critical Kills . | . . . . . Critical Parts Destroyed 2 | . . . 1 1 Melee Attacks . | . . . . . Impact . | . . . . . Slashing . | . . . . . Piercing . | . . . . . Sneak Attacks . | . . . . . Combat Hostiles . | . . . . . Follow-up Attacks . | . . . . . Damage Inflicted 1814 | . 466 . 742 606 Guns . | . . . . . Cannons 1709 | . 385 . 742 582 Explosions 81 | . 81 . . . Melee . | . . . . . Ramming 24 | . . . . 24 Kinetic 1216 | . 385 . 512 319 Thermal 574 | . 81 . 230 263 Explosive . | . . . . . Electromagnetic . | . . . . . Impact . | . . . . . Slashing . | . . . . . Piercing . | . . . . . Highest Corruption 4 | . . . . 4 Average Corruption 4 | . . . . 4 Corruption Purged . | . . . . . Effects 1 | . . . . 1 Message Errors 1 | . . . . 1 Overload Shots . | . . . . . Overflow Damage 58 | . 58 . . . Projectiles 17 | . 17 . . . Explosions 41 | . 41 . . . Melee . | . . . . . Knockbacks 9 | . 4 . 3 2 Impact . | . . . . . Kinetic 8 | . 4 . 2 2 Secondary 1 | . . . 1 . Self-Inflicted Damage 12 | . . . . 12 Shots . | . . . . . Rammed 2 | . . . . 2 Targets Rammed 2 | . . . . 2 Kicked . | . . . . . Crushed . | . . . . . Highest Temperature 492 | . 181 . 337 492 Average Temperature 135 | . 72 . 115 207 Received Heat Transfer 162 | . 90 . 42 30 Effects 12 | . . . . 12 Shutdowns 2 | . . . . 2 Interference 4 | . . . . 4 Damage (major) 6 | . . . . 6 Siege Activations . | . . . . . Robots Corrupted . | . . . . . Combat Hostiles . | . . . . . Parts Fried . | . . . . . Impact Corruptions . | . . . . . Robots Melted . | . . . . . Combat Hostiles . | . . . . . Parts Melted 1 | . . . . 1 Heat Transferred 938 | . 50 . 407 481 Parts Sabotaged . | . . . . . Parts Stolen . | . . . . . Parts Stripped . | . . . . . Power Chain Reactions . | . . . . . Missiles Intercepted . | . . . . . Alert | -11 -10 -10 -9 -9 ------- Run | Scr Mat Min Mat Min Peak Influence 345 | . 274 106 345 264 Average Influence 165 | . 183 106 185 174 Maximum Alert Level 1 | . 1 . 1 1 Low Security (%) 61 | . . . . . Level 1 38 | . . . . . Level 2 . | . . . . . Level 3 . | . . . . . Level 4 . | . . . . . Level 5 . | . . . . . High Security . | . . . . . Max Security . | . . . . . Squads Dispatched . | . . . . . Investigation . | . . . . . Extermination . | . . . . . Reinforcement . | . . . . . Assault . | . . . . . Garrison . | . . . . . Intercept . | . . . . . Construction Impeded . | . . . . . Haulers Reinforced . | . . . . . Stealth | -11 -10 -10 -9 -9 --------- Run | Scr Mat Min Mat Min Distress Signals 1 | . 1 . . . Communications Jammed . | . . . . . Distress Signals . | . . . . . Times Spotted 37 | . 10 5 12 10 Peak Tracking Total 9 | . 5 9 2 4 Tactical Retreats . | . . . . . Traps | -11 -10 -10 -9 -9 ------- Run | Scr Mat Min Mat Min Traps Triggered . | . . . . . Indirectly . | . . . . . Trap Hack Attempts . | . . . . . Triggered . | . . . . . Disarmed . | . . . . . Reprogrammed . | . . . . . Reused . | . . . . . Traps Extracted . | . . . . . Installed . | . . . . . Triggered . | . . . . . Machines | -11 -10 -10 -9 -9 ---------- Run | Scr Mat Min Mat Min Machines Disabled 5 | . 4 . 1 . Max in Single Turn 4 | . 4 . 1 . Machines Sabotaged . | . . . . . Garrisons Compromised . | . . . . . Overloaded Fab Kills . | . . . . . Fab Network Shutdowns . | . . . . . Hacking | -11 -10 -10 -9 -9 --------- Run | Scr Mat Min Mat Min Machines Accessed 5 | . 1 . 4 . Terminals 4 | . . . 4 . Fabricators . | . . . . . Repair Stations . | . . . . . Recycling Units 1 | . 1 . . . Scanalyzers . | . . . . . Garrison Access . | . . . . . Total Hacks 15 | . 2 . 13 . Successful 9 | . 1 . 8 . Failed 6 | . 1 . 5 . Catastrophic . | . . . . . Database Lockouts . | . . . . . Manual 11 | . . . 11 . Terminals 13 | . . . 13 . Fabricators . | . . . . . Repair Stations . | . . . . . Recycling Units 2 | . 2 . . . Scanalyzers . | . . . . . Garrison Access . | . . . . . Terminal Hacks 4 | . . . 4 . Prototype ID Bank 1 | . . . 1 . Emergency Access Points 1 | . . . 1 . Terminal Index 2 | . . . 2 . Fabricator Hacks . | . . . . . Repair Station Hacks . | . . . . . Recycling Unit Hacks 1 | . 1 . . . Retrieve Components 1 | . 1 . . . Scanalyzer . | . . . . . Garrison Access Hacks . | . . . . . Unauthorized Hacks 10 | . . . 10 . Terminals 4 | . . . 4 . Botnet 4 | . . . 4 . Fabricators . | . . . . . Repair Stations . | . . . . . Recycling Units . | . . . . . Scanalyzers . | . . . . . Garrison Access . | . . . . . Data Cores Recovered . | . . . . . Used . | . . . . . Hacking Detections 4 | . 1 . 3 . Full Trace Events 1 | . 1 . . . Feedback Events . | . . . . . Feedback Blocked . | . . . . . Robot Schematics Acquired . | . . . . . Robots Built . | . . . . . Matter . | . . . . . Time . | . . . . . Total Robot Build Rating . | . . . . . Part Schematics Acquired . | . . . . . Parts Built . | . . . . . Matter . | . . . . . Time . | . . . . . Total Part Build Rating . | . . . . . Parts Repaired . | . . . . . Time . | . . . . . Parts Recycled . | . . . . . Recycled Matter . | . . . . . Retrieved Matter . | . . . . . Retrieved Components 10 | . 10 . . . Parts Scanalyzed . | . . . . . Part Schematics Acquired . | . . . . . Parts Damaged . | . . . . . Bothacking | -11 -10 -10 -9 -9 ------------ Run | Scr Mat Min Mat Min Used RIF Installer . | . . . . . Robots Hacked . | . . . . . Non-combat . | . . . . . Combat . | . . . . . Robot Hacks Applied . | . . . . . Relay Couplers Released . | . . . . . Robots Rewired . | . . . . . Allies Hacked . | . . . . . Hacks Repelled . | . . . . . Allies | -11 -10 -10 -9 -9 -------- Run | Scr Mat Min Mat Min Total Allies 3 | . . 3 . . Largest Group 3 | . . 3 3 . Highest-Rated Group 40 | . . 40 40 . Highest-Rated Ally 16 | . . 16 16 . Total Orders . | . . . . . Ally Attacks 15 | . . 4 11 . Total Damage 115 | . . 31 84 . Kills 2 | . . . 2 . Allies Corrupted . | . . . . . Allies Melted . | . . . . . Intel | -11 -10 -10 -9 -9 ------- Run | Scr Mat Min Mat Min Robot Analysis Total . | . . . . . Derelict Logs Recovered 3 | . . 1 . 2 Drone Launches . | . . . . . Drone Recoveries . | . . . . . Exploration | -11 -10 -10 -9 -9 ------------- Run | Scr Mat Min Mat Min Turns Passed 964 | 61 281 64 288 270 Spaces Moved 1034 | 50 220 115 306 343 Core 41 | 31 10 . . . Treads . | . . . . . Legs 34 | 19 15 . . . Wheels . | . . . . . Hover 959 | . 195 115 306 343 Flight . | . . . . . Fastest Speed 48 | 50 50 56 48 48 Average Speed 58 | 76 82 56 49 48 Slowest Speed 130 | 120 130 56 56 48 Overloaded Moves . | . . . . . Propulsion Burnouts . | . . . . . Robots Hopped . | . . . . . Cave-ins Triggered . | . . . . . Exploration Rate (%) 30 | 4 29 30 26 64 Regions Visited 4 Branch Regions 2 Pre-discovered Areas . | . . . . . Known Exits Taken 1 | . . 1 . . Unknown Exits Taken 3 | 1 1 . 1 . Scrap Searched 1 | . . . . 1 Spaces Dug . | . . . . . Terrain Destroyed 26 | . 26 . . . Melee . | . . . . . Projectile . | . . . . . AOE 26 | . 26 . . . Actions | -11 -10 -10 -9 -9 --------- Run | Scr Mat Min Mat Min Total 1256 | 73 281 114 381 407 Wait 76 | 12 2 . 22 40 Move 1030 | 49 219 114 305 343 Hop . | . . . . . Pick Up 19 | 6 11 . 2 . Fast Attach 15 | . 6 . 8 1 Attach 8 | 4 4 . . . Detach 4 | 2 2 . . . Swap 11 | . 7 . 4 . Drop 21 | . 11 . 10 . Fire 70 | . 19 . 30 21 Melee . | . . . . . Ram 2 | . . . . 2 Kick . | . . . . . Crush . | . . . . . Escape Stasis . | . . . . . Rewire . | . . . . . Trap . | . . . . . Miscellaneous . | . . . . . Route ------- -11/Scrapyard -10/Materials -10/Mines -9/Materials -9/Mines (discovered 1 exit: [*Mat]) History --------- Turn | Location | Event 7 | -11/Scrapyard | Discovered new exit (range 15) 62 | -11/Scrapyard | Entered Materials 211 | -10/Materials | Destroyed 7 combat bots 228 | -10/Materials | Discovered new exit (range 14) 343 | -10/Materials | Entered Mines 356 | -10/Mines | Identified exit to Materials 376 | -10/Mines | Assisted by bots powering up and referring to "LRC-V3" 400 | -10/Mines | Assembled infested the area 405 | -10/Mines | Assisted by a Guerilla fighting off Assembled 407 | -10/Mines | Entered Materials 407 | -9/Materials | Accompanied by 3 allies 407 | -9/Materials | Evolved 2 slots: Propulsion x2 668 | -9/Materials | Discovered new exit (range 8) 695 | -9/Materials | Entered Mines 803 | -9/Mines | Discovered new exit (range 4) 877 | -9/Mines | Build established: Mutant 965 | -9/Mines | Self-destructed Last Messages --------------- 00902_ System corrupted by crushing effect (+4). 00903_ B-36 Bruiser destroyed. 00904_ Acquired 4 matter. 00907_ Acquired Rnf. Ion Engine. 00912_ Power failure, Rnf. Ion Engine shutdown. 00919_ Overheating: System interference. 00919_ Lgt. Cannon temporarily disabled. 00919_ Adv. Beam Cannon temporarily disabled. 00922_ Acquired 8 matter. 00923_ Acquired 2 matter. 00924_ R-06 Scavenger collects Rnf. Ion Engine. 00926_ Slammed into R-06 Scavenger. 00950_ XDFLP